bitfinex-derivatives/quotes_SOLF0:USTF0_20260204
["timestamp","ask_amount","ask_price","bid_price","bid_amount"]
[1770205735332,9.3619,96.273,96.213,11.42820632]
[1770205735537,9.3619,96.273,96.217,9.3673]
[1770205736133,9.3619,96.273,96.218,2.06114171]
[1770205736329,13.2475212,96.273,96.218,2.06114171]
[1770205737531,3.8856212,96.273,96.23,9.3661]
[1770205737734,3.58730976,96.291,96.231,2.06486783]
[1770205737937,3.58730976,96.314,96.231,2.06486783]
[1770205738135,3.58730976,96.312,96.231,2.06486783]
[1770205738747,3.58730976,96.304,96.246,9.3645]
[1770205739143,3.58730976,96.302,96.246,9.3645]
[1770205739344,8.37237081,96.301,96.246,9.3645]
[1770205739549,12.94670976,96.3,96.237,11.47931115]
[1770205739741,3.58730976,96.298,96.238,2.11391115]
[1770205740453,3.58730976,96.303,96.242,2.11391115]
[1770205740647,3.58730976,96.301,96.242,2.11391115]
[1770205740850,8.36516358,96.3,96.242,2.11391115]
[1770205741048,3.58730976,96.301,96.242,2.11391115]
[1770205741742,3.58730976,96.301,96.249,9.3643]
[1770205741946,3.58730976,96.301,96.242,2.11391115]
[1770205742148,3.58730976,96.299,96.242,2.11391115]
[1770205743853,3.58730976,96.297,96.24,9.3651]
[1770205744046,3.58730976,96.295,96.24,9.3651]
[1770205744244,3.58730976,96.293,96.24,9.3651]
[1770205744450,3.58730976,96.291,96.24,9.3651]
[1770205744746,3.58730976,96.289,96.24,9.3651]
[1770205745853,3.58730976,96.289,96.248,9.3643]
[1770205746746,3.58730976,96.289,96.257,9.3634]
[1770205747649,3.58730976,96.289,96.243,2.06447268]
[1770205747650,3.58730976,96.289,96.265,9.3626]
[1770205750549,3.58730976,96.316,96.272,9.3619]
[1770205750750,3.58730976,96.314,96.272,9.3619]
[1770205750949,3.58730976,96.312,96.272,9.3619]
[1770205751150,3.58730976,96.31,96.272,9.3619]
[1770205751453,3.58730976,96.308,96.272,9.3619]
[1770205751648,3.58730976,96.306,96.254,9.3637]
[1770205752952,3.58730976,96.306,96.256,9.3636]
[1770205754256,3.58730976,96.306,96.255,2.03250759]
[1770205755153,9.50480047,96.332,96.256,2.02892738]
[1770205755452,145.4001,96.426,96.198,145.7433]
[1770205755453,3.58730976,96.355,96.281,2.02892738]
[1770205755656,8.37049911,96.354,96.281,2.02892738]
[1770205755856,3.58730976,96.355,96.281,2.02892738]
[1770205756160,3.58730976,96.371,96.301,2.02177838]
[1770205756360,3.58730976,96.369,96.301,2.02177838]
[1770205756657,3.58730976,96.369,96.277,82.94]
[1770205756658,3.58730976,96.365,96.306,2.02177838]
[1770205756858,11.94933643,96.364,96.306,2.02177838]
[1770205757058,3.58730976,96.364,96.306,2.02177838]
[1770205757257,3.58730976,96.36,96.306,2.02177838]
[1770205758253,9.3537,96.359,96.307,9.3586]
[1770205758455,9.3537,96.359,96.306,2.02177838]
[1770205758759,3.58730976,96.357,96.271,2.0362934]
[1770205758960,9.3562,96.332,96.279,9.3613]
[1770205759158,3.58730976,96.337,96.28,2.0362934]
[1770205759661,3.58730976,96.337,96.283,2.0660629]
[1770205760256,9.3558,96.336,96.286,9.3606]
[1770205760462,3.58730976,96.337,96.287,2.0660629]
[1770205762662,3.58730976,96.337,96.273,9.3619]
[1770205762960,3.58730976,96.337,96.267,2.02972343]
[1770205763166,3.85636776,96.335,96.267,2.02972343]
[1770205763364,3.85636776,96.333,96.267,2.02972343]
[1770205763762,3.85636776,96.333,96.268,9.3624]
[1770205764257,3.85636776,96.333,96.234,82.9]
[1770205764258,3.85636776,96.333,96.285,2.02165175]
[1770205764863,3.85636776,96.333,96.292,9.36]
[1770205765760,3.85636776,96.333,96.264,2.02509263]
[1770205766364,3.45366555,96.33,96.27,3.45366555]
[1770205766667,3.85636776,96.329,96.27,3.45366555]
[1770205766859,3.85636776,96.329,96.273,9.3619]
[1770205767767,3.85636776,96.329,96.28,3.45366555]
[1770205768768,3.85636776,96.329,96.288,9.3604]
[1770205769568,3.85636776,96.329,96.297,9.3596]
[1770205770458,3.85636776,96.349,96.306,9.3587]
[1770205771558,3.85636776,96.349,96.29,3.45366555]
[1770205771764,3.85636776,96.347,96.29,3.45366555]
[1770205773369,3.85636776,96.345,96.29,3.45366555]
[1770205774170,9.354,96.355,96.301,2.11679204]
[1770205774370,3.85636776,96.354,96.301,2.11679204]
[1770205774666,3.85636776,96.339,96.286,2.11679204]
[1770205776773,9.3565,96.329,96.286,2.11679204]
[1770205778069,3.85636776,96.321,96.267,2.0911531]
[1770205778268,3.85636776,96.319,96.267,2.0911531]
[1770205779075,9.3587,96.307,96.267,2.0911531]
[1770205781173,3.45366555,96.32,96.226,82.9]
[1770205781174,3.85636776,96.298,96.251,2.09757746]
[1770205781376,18.71,96.345,96.201,18.7377]
[1770205781377,3.85636776,96.296,96.24,3.45366555]
[1770205781577,3.85636776,96.294,96.24,3.45366555]
[1770205781876,9.3617,96.276,96.236,2.09757746]
[1770205782571,9.3609,96.284,96.24,3.45366555]
[1770205783974,9.3609,96.284,96.18,18.7419]
[1770205783975,9.3596,96.297,96.26,3.45366555]
[1770205784176,3.85636776,96.307,96.26,3.45366555]
[1770205784370,8.42324769,96.306,96.26,3.45366555]
[1770205784567,8.42324769,96.305,96.26,3.45366555]
[1770205784771,8.42324769,96.304,96.26,3.45366555]
[1770205785071,3.85636776,96.324,96.29,3.45366555]
[1770205785281,3.85636776,96.34,96.29,3.45366555]
[1770205785479,8.42139127,96.339,96.29,3.45366555]
[1770205785776,8.42139127,96.338,96.29,3.45366555]
[1770205785973,8.42139127,96.337,96.29,3.45366555]
[1770205786178,12.27775903,96.336,96.29,3.45366555]
[1770205786377,8.42139127,96.335,96.29,3.45366555]
[1770205786577,8.42139127,96.334,96.29,3.45366555]
[1770205786780,8.42139127,96.333,96.29,3.45366555]
[1770205787081,8.42139127,96.332,96.29,3.45366555]
[1770205787379,8.42139127,96.331,96.29,3.45366555]
[1770205787579,3.85636776,96.336,96.29,3.45366555]
[1770205787778,8.42212363,96.335,96.29,3.45366555]
[1770205787982,9.50480047,96.356,96.29,3.45366555]
[1770205787983,3.85636776,96.351,96.3,3.45366555]
[1770205788171,3.85636776,96.349,96.3,3.45366555]
[1770205788376,3.85636776,96.347,96.3,3.45366555]
[1770205788575,12.27835183,96.346,96.3,3.45366555]
[1770205788776,8.42198407,96.345,96.301,9.3592]
[1770205789078,3.45366555,96.31,96.29,2.14310399]
[1770205789480,9.3585,96.308,96.29,3.99e-06]
[1770205789682,3.98128915,96.306,96.286,2.14310399]
[1770205790076,3.98128915,96.306,96.252,9.364]
[1770205790482,3.98128915,96.299,96.22,8.63911756]
[1770205790681,3.98128915,96.297,96.2,8.63911756]
[1770205790982,3.98129245,96.295,96.2,8.63911756]
[1770205791176,3.98129245,96.293,96.2,8.63911756]
[1770205791572,4.04659524,96.289,96.223,9.3667]
[1770205792785,4.04659524,96.287,96.223,9.3667]
[1770205793679,9.3609,96.284,96.223,9.3667]
[1770205793978,4.04198475,96.283,96.223,9.3667]
[1770205794678,9.3613,96.28,96.223,9.3667]
[1770205797586,4.04198475,96.283,96.23,9.3661]
[1770205797884,4.04198475,96.283,96.22,8.63911756]
[1770205798285,4.04198475,96.283,96.238,9.3653]
[1770205798489,4.04198475,96.283,96.22,8.63911756]
[1770205798876,4.03963932,96.282,96.202,82.92]
[1770205799078,4.03963932,96.282,96.11,57.83088476]
[1770205799277,4.03963932,96.229,96.13,8.63911756]
[1770205800187,4.03490144,96.219,96.153,9.3736]
[1770205800382,4.03490144,96.219,96.13,8.63911756]
[1770205801686,4.10908151,96.206,96.143,9.3746]
[1770205802079,4.10908151,96.206,96.13,8.63911756]
[1770205802384,4.10908151,96.202,96.09,8.63911756]
[1770205803085,4.10908151,96.183,96.07,8.63911756]
[1770205803288,4.10908151,96.182,96.07,8.63911756]
[1770205803589,4.08860888,96.159,96.099,9.3788]
[1770205804686,4.08860888,96.159,96.109,9.3779]
[1770205804888,4.08860888,96.159,96.09,8.63911756]
[1770205805190,4.08860888,96.176,96.11,8.63911756]
[1770205805891,4.06259472,96.193,96.11,8.63911756]
[1770205806394,4.06259472,96.193,96.138,9.375]
[1770205807488,4.06259472,96.193,96.127,9.3761]
[1770205807987,82.94,96.217,96.08,8.63911756]
[1770205807988,4.03420655,96.189,96.08,8.63911756]
[1770205808400,4.03420655,96.172,96.104,9.3784]
[1770205808588,4.03420655,96.169,96.08,8.63911756]
[1770205809186,4.03420655,96.162,96.103,9.3784]
[1770205809890,8.63911756,96.17,96.093,9.3794]
[1770205809891,4.03139321,96.16,96.093,9.3794]
[1770205812092,4.03314537,96.157,96.093,9.3794]
[1770205812295,4.03314537,96.157,96.102,9.3785]
[1770205813093,4.03314537,96.157,96.091,9.3796]
[1770205813588,4.03314537,96.157,96.08,8.66420953]
[1770205814298,13.40878809,96.156,96.093,9.3795]
[1770205814491,4.03538809,96.155,96.093,9.3795]
[1770205815099,4.03538809,96.153,96.102,9.3786]
[1770205815594,8.66420953,96.19,96.08,8.66420953]
[1770205815595,4.01644985,96.168,96.114,9.3773]
[1770205816199,4.01644985,96.168,96.08,8.66420953]
[1770205817300,9.3725,96.164,96.111,9.3776]
[1770205818504,4.01221791,96.159,96.101,9.3786]
[1770205819011,4.01221791,96.159,96.08,8.66420953]
[1770205819301,4.01221791,96.159,96.109,9.3779]
[1770205820608,4.01221791,96.159,96.117,9.377]
[1770205822509,4.01221791,96.159,96.125,9.3763]
[1770205825110,83.02,96.209,96.1,8.66420953]
[1770205825111,4.09010421,96.176,96.135,9.3753]
[1770205825404,4.09010421,96.176,96.1,8.66420953]
[1770205826303,4.09010421,96.176,96.134,9.3754]
[1770205826707,9.366,96.232,96.175,9.3714]
[1770205827014,83.02,96.303,96.201,3.68278974]
[1770205827205,9.3615,96.278,96.208,9.3682]
[1770205828002,9.3624,96.269,96.208,9.3682]
[1770205828611,3.92801254,96.268,96.208,9.3682]
[1770205830910,3.92801254,96.265,96.201,3.68278974]
[1770205831805,3.92801254,96.263,96.202,9.3688]
[1770205832309,3.92801254,96.263,96.208,9.3682]
[1770205835210,9.363,96.262,96.203,3.68278974]
[1770205835407,13.29101254,96.262,96.203,3.68278974]
[1770205836910,3.92801254,96.258,96.203,3.68278974]
[1770205838713,9.3637,96.256,96.203,3.68278974]
[1770205840508,9.3637,96.256,96.205,3.68278974]
[1770205841706,3.92801254,96.258,96.206,13.05118974]
[1770205843105,8.66420953,96.29,96.174,82.98]
[1770205843106,3.92801254,96.272,96.21,3.68278974]
[1770205844014,3.92801254,96.272,96.223,9.3668]
[1770205844907,3.92801254,96.269,96.215,3.68278974]
[1770205845919,3.92801254,96.269,96.216,9.3674]
[1770205846211,3.92801254,96.269,96.216,13.05018974]
[1770205846717,3.92801254,96.265,96.216,13.05018974]
[1770205846915,3.92801254,96.265,96.216,3.68278974]
[1770205847816,13.29131254,96.259,96.216,3.68278974]
[1770205849115,3.92801254,96.259,96.216,3.68278974]
[1770205849810,3.92801254,96.259,96.218,9.3672]
[1770205851014,3.5829474,96.256,96.206,3.73670392]
[1770205852514,3.5829474,96.256,96.217,9.3673]
[1770205854622,3.5829474,96.256,96.22,3.45709566]
[1770205855519,9.3629,96.263,96.22,3.45709566]
[1770205856519,3.5829474,96.27,96.221,9.3669]
[1770205857817,3.8913886,96.267,96.221,9.3669]
[1770205858828,3.8913886,96.258,96.22,3.73670392]
[1770205859021,3.8913886,96.258,96.213,9.3677]
[1770205859821,9.3636,96.256,96.213,9.3677]
[1770205860119,3.8913886,96.255,96.171,3.58689469]
[1770205860316,3.8913886,96.228,96.171,3.58689469]
[1770205860928,3.8913886,96.219,96.16,7.04399035]
[1770205861224,3.8913886,96.219,96.17,3.45709566]
[1770205861425,82.96,96.255,96.165,3.58689469]
[1770205861426,3.8913886,96.217,96.165,3.58689469]
[1770205862026,9.3667,96.225,96.181,3.58689469]
[1770205862235,3.8913886,96.233,96.181,3.58689469]
[1770205862627,9.3669,96.222,96.181,3.58689469]
[1770205863531,9.3669,96.222,96.17,3.45709566]
[1770205863532,3.8913886,96.213,96.17,3.45709566]
[1770205863828,3.8913886,96.213,96.16,7.04399035]
[1770205864128,9.3679,96.212,96.171,3.58689469]
[1770205864829,9.3686,96.205,96.171,3.58689469]
[1770205865032,3.8913886,96.209,96.154,3.58689469]
[1770205865725,9.3699,96.191,96.154,3.58689469]
[1770205866830,18.731,96.237,96.139,3.58689469]
[1770205866831,3.8913886,96.18,96.139,3.58689469]
[1770205867030,3.8913886,96.169,96.123,3.58689469]
[1770205867231,3.8913886,96.169,96.11,3.45709566]
[1770205867431,3.8913886,96.149,96.1,7.04399035]
[1770205867727,3.8913886,96.149,96.101,3.58689469]
[1770205868933,9.3752,96.137,96.09,3.45709566]
[1770205869135,3.8913886,96.139,96.085,3.58689469]
[1770205869533,3.8913886,96.139,96.09,3.45709566]
[1770205869933,3.8913886,96.139,96.085,3.58689469]
[1770205871137,3.8913886,96.139,96.09,3.45709566]
[1770205872638,3.8913886,96.139,96.085,3.58689469]
[1770205872935,3.8913886,96.139,96.09,3.45709566]
[1770205873235,3.8913886,96.139,96.053,1.81066576]
[1770205873429,3.8913886,96.089,96.013,3.58689469]
[1770205873738,3.8913886,96.089,95.925,146.1576]
[1770205873739,3.8913886,96.089,96.03,3.45709566]
[1770205873941,3.8913886,96.089,96.041,3.58689469]
[1770205875038,3.8913886,96.104,96.05,3.47000552]
[1770205875538,3.8913886,96.104,96.006,83.02]
[1770205875539,7.36139412,96.12,96.061,3.58689469]
[1770205875744,7.36139412,96.11,96.061,3.58689469]
[1770205876241,3.8913886,96.108,96.044,12.97109469]
[1770205876440,3.8913886,96.108,96.05,3.47000552]
[1770205876941,3.8913886,96.108,96.051,3.58689469]
[1770205877144,3.8913886,96.108,96.006,83.02]
[1770205877145,3.8913886,96.108,96.06,3.47000552]
[1770205877339,3.8913886,96.108,96.053,3.58689469]
[1770205877842,3.8913886,96.108,96.054,9.3832]
[1770205878434,3.8913886,96.108,96.054,12.97009469]
[1770205878940,3.8913886,96.108,96.054,3.58689469]
[1770205879145,3.8913886,96.108,96.06,3.47000552]
[1770205879343,3.8913886,96.108,96.061,9.3826]
[1770205879643,83.04,96.145,96.08,3.47000552]
[1770205879644,3.8913886,96.125,96.08,3.47000552]
[1770205879840,3.8913886,96.139,96.081,3.58689469]
[1770205880340,3.8913886,96.137,96.081,3.58689469]
[1770205881542,3.8913886,96.137,96.082,9.3805]
[1770205882438,3.6985005,96.136,96.07,9.3817]
[1770205882740,3.6985005,96.136,96.063,3.66063332]
[1770205883243,3.6985005,96.113,96.048,13.04443332]
[1770205883437,3.6985005,96.113,96.033,3.66063332]
[1770205883642,3.6985005,96.099,96.004,3.66063332]
[1770205884743,3.6985005,96.09,96.028,9.3858]
[1770205885144,3.6985005,96.111,96.029,3.66063332]
[1770205885339,3.6985005,96.109,96.029,3.66063332]
[1770205886144,3.6985005,96.109,96.059,9.3827]
[1770205886340,3.6985005,96.109,96.02,8.66853024]
[1770205886643,3.6985005,96.109,96.021,3.66063332]
[1770205887145,3.6985005,96.098,96.038,9.3848]
[1770205887547,3.6985005,96.096,96.038,9.3848]
[1770205887743,3.6985005,96.096,96.026,3.66063332]
[1770205888548,3.6985005,96.094,96.037,9.3849]
[1770205889447,8.66853024,96.13,96.047,3.66063332]
[1770205889448,9.3784,96.104,96.047,3.66063332]
[1770205889649,3.6985005,96.111,96.047,3.66063332]
[1770205889947,3.6985005,96.111,96.053,3.61137265]
[1770205890846,9.378,96.108,96.059,9.3828]
[1770205891143,3.6985005,96.13,96.06,3.61137265]
[1770205891346,3.6985005,96.146,96.073,3.61137265]
[1770205892343,3.6985005,96.136,96.073,3.61137265]
[1770205893049,9.3757,96.132,96.073,3.61137265]
[1770205894152,9.3757,96.132,96.075,3.58717233]
[1770205894653,3.6985005,96.136,96.075,3.58717233]
[1770205894950,3.6985005,96.136,96.06,8.66853024]
[1770205895156,3.6985005,96.113,96.043,3.58717233]
[1770205895753,3.6985005,96.089,96.021,3.58966384]
[1770205896761,3.6985005,96.085,96.021,3.58966384]
[1770205897467,3.6985005,96.082,96.021,3.58966384]
[1770205897661,3.6985005,96.079,96.002,3.61468993]
[1770205898364,3.6985005,96.07,96.002,3.61468993]
[1770205899567,9.3821,96.066,96.002,3.61468993]
[1770205899766,3.6985005,96.065,96.002,3.61468993]
[1770205900567,9.3824,96.063,96.002,3.61468993]
[1770205900770,3.6985005,96.062,96.002,3.61468993]
[1770205901267,3.6985005,96.041,95.974,3.62711609]
[1770205902591,3.6985005,96.041,95.981,3.62753789]
[1770205903264,13.0831005,96.041,95.981,3.62753789]
[1770205904069,3.6985005,96.033,95.944,3.62651518]
[1770205904465,3.6985005,96.01,95.944,3.62651518]
[1770205905173,9.3877,96.009,95.944,3.62651518]
[1770205905668,3.6985005,96.01,95.944,3.62651518]
[1770205905870,3.6985005,96.01,95.947,3.66063332]
[1770205906163,3.6985005,96.01,95.951,3.66063332]
[1770205906371,3.6985005,96.032,95.951,3.66063332]
[1770205906569,3.6985005,96.032,95.962,3.66063332]
[1770205906764,9.3856,96.03,95.962,3.66063332]
[1770205906965,3.6985005,96.029,95.962,3.66063332]
[1770205907469,3.6985005,96.025,95.962,3.66063332]
[1770205909673,3.6985005,96.044,95.962,3.66063332]
[1770205909873,3.6985005,96.044,95.971,3.66063332]
[1770205910668,3.6985005,96.044,95.984,9.3901]
[1770205910873,3.6985005,96.044,95.984,13.03956029]
[1770205911474,3.6985005,96.044,95.99,9.3894]
[1770205911676,3.6985005,96.044,95.985,3.64946029]
[1770205912077,9.3832,96.055,95.985,3.64946029]
[1770205912677,9.3832,96.055,95.999,9.3886]
[1770205913368,3.80163479,96.06,96.007,9.3878]
[1770205913571,3.80163479,96.06,95.985,3.64946029]
[1770205913879,3.80163479,96.049,95.957,3.64946029]
[1770205915180,3.7826706,96.028,95.957,3.64946029]
[1770205915981,3.7826706,96.02,95.965,9.3919]
[1770205916176,3.7826706,96.02,95.957,3.64946029]
[1770205917379,3.7826706,96.02,95.983,9.3902]
[1770205917583,3.7826706,96.049,95.973,3.936738]
[1770205918378,3.7826706,96.044,95.991,9.3894]
[1770205919978,3.7826706,96.044,95.999,9.3886]
[1770205920380,3.7826706,96.044,95.988,3.89626523]
[1770205921281,3.7826706,96.044,95.998,9.3887]
[1770205922386,3.7826706,96.044,95.951,3.95356465]
[1770205922586,2.59023577,96.011,95.951,3.95356465]
[1770205922785,2.59023577,96.028,95.951,3.95356465]
[1770205923281,2.59023577,96.028,95.975,3.95356465]
[1770205923888,2.59023577,96.028,95.98,9.3905]
[1770205924319,2.59023577,96.028,95.975,3.95356465]
[1770205924482,9.386,96.027,95.976,9.3908]
[1770205924683,2.7235938,96.026,95.951,3.95356465]
[1770205925279,2.7235938,96.013,95.962,9.3922]
[1770205925885,2.7235938,96.013,95.962,13.34576465]
[1770205926786,9.3875,96.011,95.962,3.95356465]
[1770205927286,9.3882,96.004,95.962,3.95356465]
[1770205927488,2.84082897,96.003,95.946,3.95356465]
[1770205928092,2.84842236,95.99,95.929,3.95356465]
[1770205928388,2.84842236,95.99,95.913,3.95356465]
[1770205928983,2.84842236,95.969,95.913,3.95356465]
[1770205929496,2.84842236,96.008,95.913,3.95356465]
[1770205929690,2.83101133,95.991,95.915,3.95356465]
[1770205929889,2.83101133,95.991,95.898,3.95356465]
[1770205930095,2.83101133,95.989,95.898,3.95356465]
[1770205930285,2.83101133,95.961,95.881,3.95356465]
[1770205931286,9.3939,95.946,95.881,13.35366465]
[1770205931491,2.83101133,95.961,95.882,3.95356465]
[1770205931990,2.83101133,95.961,95.895,3.95356465]
[1770205933287,9.3935,95.95,95.895,3.95356465]
[1770205933997,9.3942,95.942,95.895,3.95356465]
[1770205935195,9.395,95.934,95.895,3.95356465]
[1770205937491,9.3941,95.944,95.895,3.95356465]
[1770205938595,2.84626225,95.958,95.895,3.95356465]
[1770205939802,2.95650073,95.974,95.898,3.95356465]
[1770205940597,2.95650073,95.97,95.904,9.3979]
[1770205941499,2.96243239,95.958,95.898,3.95356465]
[1770205942203,3.0782842,95.954,95.898,3.95356465]
[1770205943203,3.0782842,95.954,95.901,9.3982]
[1770205943705,3.0782842,95.954,95.9,3.6215021]
[1770205943904,3.08009212,95.97,95.9,3.6215021]
[1770205944902,3.08009212,95.968,95.913,9.397]
[1770205945502,3.08009212,95.964,95.906,3.6215021]
[1770205946504,3.09612872,95.981,95.906,3.6215021]
[1770205947598,3.09612872,95.981,95.91,3.6215021]
[1770205947599,9.3912,95.973,95.91,3.6215021]
[1770205948304,9.3912,95.973,95.913,3.6215021]
[1770205948601,9.3919,95.966,95.913,3.6215021]
[1770205953603,9.3911,95.974,95.916,3.6215021]
[1770205953808,3.1056414,95.973,95.916,3.6215021]
[1770205955608,3.1056414,95.973,95.919,9.3965]
[1770205955809,3.1056414,95.973,95.92,3.6215021]
[1770205956410,9.3916,95.97,95.921,9.3963]
[1770205956612,9.3916,95.97,95.92,3.6215021]
[1770205956806,3.11514111,95.969,95.92,3.6215021]
[1770205957009,3.11514111,95.961,95.906,9.3977]
[1770205957310,3.11514111,95.961,95.907,3.6215021]
[1770205958511,3.12694205,95.953,95.89,7.10189925]
[1770205958711,3.12694205,95.949,95.89,7.10189925]
[1770205958908,12.52054205,95.949,95.905,9.3978]
[1770205961618,3.14235023,95.948,95.905,9.3978]
[1770205962919,3.14235023,95.948,95.912,9.3971]
[1770205964625,3.14235023,95.948,95.904,3.6215021]
[1770205966624,3.14235023,95.948,95.891,3.6215021]
[1770205967422,3.48039715,95.91,95.854,3.6215021]
[1770205967622,3.18790985,95.909,95.854,3.6215021]
[1770205967819,3.18397198,95.907,95.854,3.6215021]
[1770205968123,3.18397198,95.922,95.861,3.6215021]
[1770205968324,3.18397198,95.922,95.87,3.48039715]
[1770205968724,3.18397198,95.922,95.87,7.10189925]
[1770205968925,3.18397198,95.922,95.871,3.6215021]
[1770205969121,3.18397198,95.939,95.891,3.6215021]
[1770205969432,9.3949,95.936,95.891,3.6215021]
[1770205970319,3.18397198,95.939,95.891,3.6215021]
[1770205970838,9.3956,95.928,95.891,3.6215021]
[1770205971025,3.18397198,95.939,95.891,3.6215021]
[1770205971626,9.3951,95.933,95.891,3.6215021]
[1770205971828,3.18397198,95.939,95.891,3.6215021]
[1770205972028,3.10299282,95.929,95.839,3.68204725]
[1770205972321,3.10299282,95.912,95.851,3.68204725]
[1770205973328,3.10299282,95.95,95.851,3.68204725]
[1770205973532,3.10299282,96.005,95.901,3.68204725]
[1770205973930,3.23552246,95.973,95.893,3.68204725]
[1770205974626,9.3937,95.947,95.893,3.68204725]
[1770205974933,3.23552246,95.946,95.876,3.68204725]
[1770205975229,3.23552246,95.944,95.886,9.3997]
[1770205975425,3.23552246,95.944,95.886,3.68204725]
[1770205975626,9.3932,95.953,95.886,3.68204725]
[1770205975933,9.3932,95.953,95.87,8.70916619]
[1770205975934,3.30378709,95.98,95.906,3.68204725]
[1770205976420,3.30378709,96.0,95.939,3.68204725]
[1770205977230,3.30378709,96.0,95.919,3.66977501]
[1770205977432,9.3899,95.987,95.928,9.3956]
[1770205977827,3.28224672,95.986,95.919,3.66977501]
[1770205978027,9.3912,95.973,95.919,3.66977501]
[1770205978431,3.28224672,95.986,95.919,3.66977501]
[1770205979733,3.25390287,95.962,95.901,3.66977501]
[1770205980233,9.3938,95.946,95.901,3.66977501]
[1770205980433,9.3938,95.946,95.86,8.70916619]
[1770205980434,3.25390287,95.962,95.884,3.66977501]
[1770205981533,9.3933,95.952,95.899,9.3984]
[1770205981734,9.3933,95.952,95.9,3.66977501]
[1770205982439,3.17554513,95.98,95.91,3.66977501]
[1770205982832,3.17554513,96.009,95.91,3.66977501]
[1770205983034,3.17554513,96.009,95.932,9.3951]
[1770205984038,3.17554513,96.009,95.94,3.66977501]
[1770205984636,9.3868,96.019,95.966,9.3919]
[1770205985540,9.3868,96.019,95.971,9.3913]
[1770205985741,3.15663112,96.065,95.972,3.66977501]
[1770205986039,3.15663112,96.065,95.981,3.66977501]
[1770205986242,3.15663112,96.047,95.97,3.66977501]
[1770205986841,9.3862,96.024,95.97,3.66977501]
[1770205987043,3.15663112,96.047,95.97,3.66977501]
[1770205987239,3.15663112,96.075,95.981,3.66977501]
[1770205987436,3.15663112,96.075,96.002,3.66977501]
[1770205988445,9.3832,96.055,96.003,9.3882]
[1770205988846,9.3832,96.055,96.004,3.66977501]
[1770205989139,3.16061073,96.064,96.008,9.3878]
[1770205989742,9.3826,96.062,96.008,9.3878]
[1770205990042,3.11134606,96.082,96.008,3.66977501]
[1770205990344,3.11134606,96.1,96.008,3.66977501]
[1770205991041,9.3789,96.099,96.043,9.3843]
[1770205991243,3.11134606,96.1,96.035,3.66977501]
[1770205991941,9.3798,96.09,96.035,3.66977501]
[1770205992652,3.11025928,96.146,96.051,3.66977501]
[1770205992936,3.11025928,96.146,96.029,145.9993]
[1770205992937,3.11025928,96.199,96.091,3.66977501]
[1770205993342,9.3726,96.164,96.091,3.66977501]
[1770205993535,3.11025928,96.179,96.091,3.66977501]
[1770205994536,3.13391482,96.151,96.071,3.66977501]
[1770205995642,9.3748,96.141,96.071,3.66977501]
[1770205996337,9.3758,96.131,96.071,3.66977501]
[1770205996544,8.670423,96.15,96.051,3.66977501]
[1770205996545,3.06099728,96.13,96.051,3.66977501]
[1770205997042,3.06099728,96.129,96.051,3.66977501]
[1770205997741,9.3778,96.11,96.051,3.66977501]
[1770205998441,9.3788,96.1,96.051,3.66977501]
[1770205999848,9.38,96.088,96.032,3.66977501]
[1770206000140,3.04243828,96.093,96.032,3.66977501]
[1770206000342,9.381,96.077,96.032,3.66977501]
[1770206000845,9.381,96.077,96.013,3.81120615]
[1770206001041,9.3824,96.063,96.013,3.81120615]
[1770206001433,9.3835,96.052,96.013,3.81120615]
[1770206001641,9.3835,96.052,95.98,8.670423]
[1770206001642,9.3835,96.052,95.993,3.81120615]
[1770206003646,2.59846715,96.059,95.993,3.81120615]
[1770206003647,9.3844,96.043,95.993,3.81120615]
[1770206004548,9.3832,96.055,95.993,3.81120615]
[1770206004855,2.51275546,96.083,96.001,3.81120615]
[1770206005647,9.3828,96.059,96.001,3.81120615]
[1770206007448,2.49334182,96.064,96.001,3.81120615]
[1770206008749,9.3825,96.063,96.001,3.81120615]
[1770206010554,9.3825,96.063,96.002,9.3883]
[1770206011653,9.3825,96.063,96.003,3.81120615]
[1770206011850,9.3825,96.063,96.004,9.3882]
[1770206012054,9.3825,96.063,96.004,13.19940615]
[1770206012354,9.3815,96.073,96.005,3.81120615]
[1770206013749,9.3815,96.073,96.009,3.81120615]
[1770206014756,9.3815,96.073,96.014,3.81120615]
[1770206015649,9.3822,96.065,96.014,3.81120615]
[1770206017652,9.3832,96.056,96.014,3.81120615]
[1770206018348,1.85940391,96.067,95.981,3.81120615]
[1770206019755,9.3851,96.036,95.989,3.81120615]
[1770206020754,9.3851,96.036,95.992,3.81120615]
[1770206021756,9.3851,96.036,95.994,3.81120615]
[1770206024759,83.82,96.088,95.96,8.670423]
[1770206024760,9.3858,96.028,95.974,3.81120615]
[1770206025758,9.3858,96.028,95.976,9.3909]
[1770206026462,2.18624409,96.033,95.989,9.3895]
[1770206028661,2.18624409,96.033,95.989,13.20070615]